Workbook

Sheet Activos fijos
A2: SERVICIO REGIONAL DE SALUD ESTE V
A3: Estado de Activo Fijo
A4: Del ejercicio terminado Mayo 2025
A5: ,
A6: Mobiliario y equipos 2021
C7: Saldo al inico | E7: Adiciones | F7: Activos Mes | G7: Ajuste | I7: Transferencias | K7: Saldo al Final
A8: Costos
A9: Mobiliarios y equipos oficina | C9: =SUM(E24:E32) -> 28,825,288 | E9: =F24+F25+F27+F29+F31+F28+F32+F30 -> 10,783,753.29 | K9: =+C9+E9+F9 -> 39,609,041
A10: Equipos de transporte y otros | C10: =SUM(E23) -> 2,502,044 | E10: =SUM(F23) -> 1,672,237.70 | K10: =+C10+E10 -> 4,174,281
C11: =SUM(C9:C10) -> 31,327,332 | E11: =SUM(E9:E10) -> 12,455,991 | G11: =SUM(G9:G10) -> 0 | I11: =SUM(I9:I10) -> 0 | K11: =SUM(K9:K10) -> 43,783,323
A13: Depreciación
A14: Mobiliario y equipos de oficina | C14: =SUM(G24:G32) -> 24,043,278 | K14: =+C14+E14+G14 -> 24,043,278
A15: Equipos de transporte y otros | C15: =SUM(G23) -> 2,502,040 | K15: =+C15+E15 -> 2,502,040
C16: =SUM(C14:C15) -> 26,545,317 | E16: =SUM(E14:E15) -> 0 | G16: =SUM(G14:G15) -> 0 | I16: =+SUM(I14:I15) -> 0 | K16: =SUM(K14:K15) -> 26,545,317
A17: Mobiliario y Equipos Netos. | C17: =+C11-C16 -> 4,782,014 | E17: =+E11-E16 -> 12,455,991 | G17: =+G11+G16 -> 0 | I17: =+I11+I16 -> 0 | K17: =+K11-K16 -> 17,238,005
K19: =K33 -> 15,142,581.39
K21: =K17-K19 -> 2,095,423.90
E22: VALOR | F22: ADIOCIONALES | G22: DEPRECIACION | I22: VALOR LIBRO
B23: EQUIPO TRANSPORTE | E23: 2,502,043.54 | F23: =1600707.7+71530 -> 1,672,237.70 | G23: 2,502,039.54 | I23: =E23-G23 -> 4.00 | K23: =E23+F23-G23 -> 1,672,241.70
B24: Mobiliarios y equipos oficina | E24: 3,819,390.68 | F24: 89,750.00 | G24: 1,094,396.20 | I24: =E24-G24 -> 2,724,994.48 | K24: =E24+F24-G24 -> 2,814,744.48
B25: Comunicación | F25: 89,794.01 | I25: =E25-G25 -> 0 | K25: =E25+F25-G25 -> 89,794.01
B26: Electricos | I26: =E26-G26 -> 0 | K26: =E26+F26-G26 -> 0
B27: medicos y laboratorios | E27: 22,910,473.43 | F27: =4013179.8+304126.68+128242.4 -> 4,445,548.88 | G27: 20,885,990.66 | I27: =E27-G27 -> 2,024,482.77 | K27: =E27+F27-G27 -> 6,470,031.65
B28: computos | E28: 2,095,423.90 | F28: 5,980,990.40 | G28: 2,062,890.85 | I28: =E28-G28 -> 32,533.05 | K28: =E29+F28-G28 -> 3,918,099.55 | L28: =SUM(+K28+K25) -> 4,007,893.56
B29: Maquinaria y equipos | F29: 23,970.00 | I29: =E30-G29 -> 0 | K29: =E30+F29-G29 -> 23,970.00
B30: Muebles de oficinas | F30: 153,700.00 | I30: =E30-G30 -> 0 | K30: =E30+F30-G30 -> 153,700.00
B31: otros mobiliarios | I31: =E31-G31 -> 0 | K31: =E31+F31-G31 -> 0 | L31: =SUM(K31+K30+K24+K29+K32) -> 2,992,414.48
B32: Aires Acondicionado | I32: =E32-G32 -> 0 | K32: =E32+F32-G32 -> 0
E33: =SUM(E23:E32) -> 31,327,331.55 | F33: =SUM(F23:F32) -> 12,455,990.99 | G33: =SUM(G23:G32) -> 26,545,317.25 | I33: =SUM(I23:I32) -> 4,782,014.30 | K33: =SUM(K23:K32) -> 15,142,581.39
I38: DEPREC. | K38: VALOR
I39: 2,333,274.00 | K39: 1.00 | L39: =SUM(I39+K39) -> 2,333,275.00
I40: 168,765.54 | K40: 3.00 | L40: =SUM(I40+K40) -> 168,768.54
L41: =SUM(I41+K41) -> 0
L42: =SUM(I42+K42) -> 0
L43: =SUM(I43+K43) -> 0
L44: =SUM(I44+K44) -> 0
L45: =SUM(I45+K45) -> 0
L46: =SUM(I46+K46) -> 0
L47: =SUM(I47+K47) -> 0
L48: =SUM(I48+K48) -> 0
L49: =SUM(I49+K49) -> 0
L50: =SUM(I50+K50) -> 0
L51: =SUM(I51+K51) -> 0
L52: =SUM(I52+K52) -> 0
I53: =SUM(I39:I52) -> 2,502,039.54 | L53: =SUM(L39:L52) -> 2,502,043.54
